bitfinex/quotes_BTCUSD_20240906
["timestamp","ask_amount","ask_price","bid_price","bid_amount"]
[1725659709527,0.000814,53879.0,53871.0,0.1149]
[1725659709970,0.185625,53872.0,53871.0,0.1149]
[1725659710180,0.556875,53872.0,53871.0,0.1149]
[1725659710808,0.556875,53872.0,53871.0,0.2415]
[1725659711011,0.556875,53872.0,53871.0,0.2335]
[1725659711634,0.556875,53872.0,53871.0,0.2425]
[1725659712251,0.556875,53872.0,53871.0,0.2565]
[1725659713167,0.2961997,53872.0,53871.0,0.2565]
[1725659713374,0.4768247,53872.0,53871.0,0.2565]
[1725659715764,0.556875,53872.0,53871.0,0.2565]
[1725659715962,0.556875,53872.0,53871.0,0.285884]
[1725659716639,0.556875,53872.0,53871.0,0.2565]
[1725659722955,1.407575,53872.0,53871.0,0.023]
[1725659723187,1.49031461,53872.0,53871.0,0.023]
[1725659723469,1.51789449,53872.0,53871.0,0.023]
[1725659723702,1.49125921,53872.0,53871.0,0.023]
[1725659723936,1.4032634,53872.0,53871.0,0.009]
[1725659724204,0.928125,53872.0,53871.0,0.2447]
[1725659724435,1.40969449,53872.0,53871.0,0.2447]
[1725659724677,1.40969449,53872.0,53871.0,0.2357]
[1725659725170,1.40969449,53872.0,53871.0,0.2497]
[1725659725415,1.01181943,53872.0,53871.0,0.2467]
[1725659725669,0.98392878,53872.0,53871.0,0.2387]
[1725659725910,0.98392878,53872.0,53871.0,0.2457]
[1725659726161,0.928125,53872.0,53871.0,0.2457]
[1725659726397,1.01183271,53872.0,53871.0,0.2357]
[1725659726629,0.928125,53872.0,53871.0,0.2497]
[1725659727385,1.01183546,53872.0,53871.0,0.2537]
[1725659727619,1.01183546,53872.0,53871.0,0.2497]
[1725659727620,1.03973528,53872.0,53871.0,0.2497]
[1725659727849,1.03973528,53872.0,53871.0,0.25833]
[1725659728077,0.92894,53872.0,53871.0,0.25833]
[1725659728323,1.04055028,53872.0,53871.0,0.25833]
[1725659728550,1.04055583,53872.0,53871.0,0.25133]
[1725659728794,1.04055583,53872.0,53871.0,0.23733]
[1725659729019,1.04055583,53872.0,53871.0,0.25833]
[1725659729489,0.92894,53872.0,53871.0,0.25833]
[1725659729751,1.01265191,53872.0,53871.0,0.25833]
[1725659730242,0.92894,53872.0,53871.0,0.25833]
[1725659730730,1.01265191,53872.0,53871.0,0.25833]
[1725659731468,0.55769,53872.0,53871.0,0.25833]
[1725659732169,0.92894,53872.0,53871.0,0.25833]
[1725659732940,0.55769,53872.0,53871.0,0.25833]
[1725659733863,0.61349039,53872.0,53871.0,0.25833]
[1725659734087,0.55769,53872.0,53871.0,0.25833]
[1725659734574,0.61348916,53872.0,53871.0,0.25833]
[1725659735530,0.000815,53872.0,53871.0,0.25833]
[1725659735756,0.18644,53872.0,53871.0,0.25833]
[1725659737016,0.18644,53872.0,53871.0,0.3251877]
[1725659737218,0.55769,53872.0,53871.0,0.3251877]
[1725659737421,0.55769,53872.0,53871.0,0.25833]
[1725659737633,0.18644,53872.0,53871.0,0.25833]
[1725659738257,0.000815,53872.0,53871.0,0.25833]
[1725659739829,0.18644,53872.0,53871.0,0.25833]
[1725659742361,0.05579532,53875.0,53871.0,0.25833]
[1725659742362,0.371229,53875.0,53871.0,0.25833]
[1725659744241,0.371229,53875.0,53871.0,0.23733]
[1725659744475,0.371229,53875.0,53871.0,0.25233]
[1725659748423,0.06616801,53877.0,53871.0,0.25233]
[1725659748627,0.05579532,53876.0,53871.0,0.25233]
[1725659749033,0.05579532,53875.0,53871.0,0.25233]
[1725659749444,0.05579532,53874.0,53871.0,0.25233]
[1725659749658,0.05579532,53874.0,53871.0,0.24833]
[1725659750283,0.05579532,53874.0,53871.0,0.23733]
[1725659751118,0.05579532,53874.0,53871.0,0.24933]
[1725659751310,0.05579532,53874.0,53871.0,0.24633]
[1725659751511,0.05579532,53874.0,53871.0,0.25133]
[1725659751648,0.05579532,53874.0,53871.0,0.24233]
[1725659751882,0.05579532,53875.0,53871.0,0.23733]
[1725659752090,0.000815,53874.0,53871.0,0.25533]
[1725659752326,0.05661032,53874.0,53871.0,0.25533]
[1725659752880,0.05661032,53874.0,53871.0,0.24933]
[1725659753288,0.05661032,53874.0,53871.0,0.23733]
[1725659753491,0.05661032,53874.0,53871.0,0.25033]
[1725659754210,0.05661032,53874.0,53871.0,0.25133]
[1725659754412,0.05661032,53874.0,53871.0,0.26533]
[1725659754614,0.0557732,53876.0,53871.0,0.26533]
[1725659755482,0.0557732,53876.0,53871.0,0.25133]
[1725659755816,0.0557732,53876.0,53871.0,0.26533]
[1725659756841,0.0557732,53876.0,53871.0,0.26904219]
[1725659757055,0.0557732,53876.0,53871.0,0.25504219]
[1725659757260,0.0557732,53876.0,53871.0,0.26704219]
[1725659757657,0.0557732,53876.0,53871.0,0.29764321]
[1725659757889,0.0557732,53876.0,53871.0,0.26704219]
[1725659759808,0.05577288,53876.0,53871.0,0.26704219]
[1725659760888,0.05577177,53877.0,53871.0,0.26704219]
[1725659762101,0.05577177,53877.0,53871.0,0.25304219]
[1725659762283,0.05577177,53877.0,53871.0,0.30280731]
[1725659762787,0.0661313,53877.0,53871.0,0.30280731]
[1725659763224,0.0661313,53877.0,53871.0,0.25504219]
[1725659763451,0.01035953,53877.0,53875.0,0.1242]
[1725659763653,0.01035953,53877.0,53876.0,0.1189]
[1725659763861,0.05577177,53880.0,53876.0,0.1189]
[1725659764085,0.08365766,53883.0,53876.0,0.1189]
[1725659764086,0.05577177,53881.0,53876.0,0.1189]
[1725659764358,0.000815,53877.0,53876.0,0.1189]
[1725659764996,0.000815,53877.0,53876.0,0.1329]
[1725659765402,0.000815,53877.0,53876.0,0.1189]
[1725659765636,0.000815,53877.0,53876.0,0.1449]
[1725659769179,0.000815,53877.0,53876.0,0.2669]
[1725659774277,0.186424,53877.0,53876.0,0.2669]
[1725659774679,0.557639,53877.0,53876.0,0.2669]
[1725659774886,0.928854,53877.0,53876.0,0.2669]
[1725659775653,0.91615481,53877.0,53876.0,0.2669]
[1725659780261,0.54493981,53877.0,53876.0,0.2669]
[1725659782642,0.371215,53877.0,53876.0,0.2669]
[1725659783388,0.556824,53877.0,53876.0,0.2669]
[1725659788250,0.556824,53877.0,53876.0,0.26853]
[1725659788484,0.655439,53877.0,53876.0,0.02763]
[1725659788678,0.76226947,53877.0,53876.0,0.02763]
[1725659788853,0.73913053,53877.0,53876.0,0.02763]
[1725659789055,0.651557,53877.0,53876.0,0.02763]
[1725659789639,0.76313516,53877.0,53876.0,0.02763]
[1725659790277,0.651557,53877.0,53876.0,0.02763]
[1725659794147,0.76312299,53877.0,53876.0,0.02763]
[1725659794774,0.76311885,53877.0,53876.0,0.02763]
[1725659796353,0.75811885,53877.0,53876.0,0.02763]
[1725659797816,0.36789425,53877.0,53876.0,0.02763]
[1725659798364,0.284224,53877.0,53876.0,0.02763]
[1725659801190,0.1822761,53877.0,53876.0,0.02763]
[1725659804065,0.3678851,53877.0,53876.0,0.02763]
[1725659804972,0.08364815,53877.0,53876.0,0.02763]
[1725659806321,0.1188,53877.0,53876.0,0.02763]
[1725659807179,0.1188,53877.0,53876.0,0.01563]
[1725659807617,0.1188,53877.0,53876.0,0.00463]
[1725659807836,0.15504991,53877.0,53876.0,0.01863]
[1725659808053,0.24994991,53877.0,53876.0,0.01863]
[1725659808244,0.24994991,53877.0,53876.0,0.01563]
[1725659808707,2.03540222,53877.0,53876.0,0.01563]
[1725659808926,4.82440222,53877.0,53876.0,0.01563]
[1725659809149,3.36215231,53877.0,53876.0,0.01563]
[1725659809387,3.11615231,53877.0,53876.0,0.01563]
[1725659809646,3.03639908,53877.0,53876.0,0.00463]
[1725659809896,3.08192984,53877.0,53876.0,0.01863]
[1725659810303,3.10192984,53877.0,53876.0,0.01863]
[1725659810459,3.10192984,53877.0,53876.0,0.00163]
[1725659810658,3.10192984,53877.0,53871.0,0.00163]
[1725659810659,0.2137,53872.0,53871.0,0.00163]
[1725659810861,4.40051677,53872.0,53871.0,0.00163]
[1725659811042,5.39451677,53872.0,53871.0,0.00163]
[1725659811269,5.40451677,53872.0,53871.0,0.00163]
[1725659812359,5.40251677,53872.0,53871.0,0.00163]
[1725659812583,5.42251677,53872.0,53871.0,0.00163]
[1725659813184,5.42251677,53872.0,53871.0,0.01163]
[1725659813732,5.42251677,53872.0,53871.0,0.01263]
[1725659813733,5.42851677,53872.0,53871.0,0.01263]
[1725659814604,5.44159146,53872.0,53871.0,0.01263]
[1725659815383,5.6084773,53872.0,53871.0,0.01263]
[1725659817461,5.44159146,53872.0,53871.0,0.01263]
[1725659819259,4.73289146,53872.0,53871.0,0.01263]
[1725659819613,0.64789804,53872.0,53871.0,0.01263]
[1725659819820,0.54364861,53872.0,53871.0,0.01263]
[1725659820055,0.64789538,53872.0,53871.0,0.01263]
[1725659820265,0.50894646,53872.0,53871.0,0.01263]
[1725659820481,0.64789538,53872.0,53871.0,0.01263]
[1725659820723,0.50894646,53872.0,53871.0,0.01263]
[1725659822256,0.53394646,53872.0,53871.0,0.01263]
[1725659823147,0.67289538,53872.0,53871.0,0.01263]
[1725659823359,0.67286507,53872.0,53871.0,0.01263]
[1725659823555,0.53394646,53872.0,53871.0,0.01263]
[1725659823939,0.6450787,53872.0,53871.0,0.01263]
[1725659824289,0.90519646,53872.0,53871.0,0.01263]
[1725659824466,1.27644646,53872.0,53871.0,0.01263]
[1725659824603,2.13007327,53872.0,53871.0,0.01263]
[1725659824804,2.13007396,53872.0,53871.0,0.01263]
[1725659825061,2.01894646,53872.0,53871.0,0.01263]
[1725659825490,2.57517953,53872.0,53871.0,0.01263]
[1725659825683,2.39019646,53872.0,53871.0,0.01263]
[1725659826634,2.50132174,53872.0,53871.0,0.01263]
[1725659827046,2.39019646,53872.0,53871.0,0.01263]
[1725659827362,2.39219646,53872.0,53871.0,0.01263]
[1725659827569,2.57717953,53872.0,53871.0,0.01263]
[1725659828630,2.39219646,53872.0,53871.0,0.01263]
[1725659828869,1.69969969,53872.0,53871.0,0.23673]
[1725659829086,1.79394646,53872.0,53871.0,0.23673]
[1725659829354,1.90507271,53872.0,53871.0,0.23673]
[1725659829530,1.31844969,53872.0,53871.0,0.23673]
[1725659829894,0.94719969,53872.0,53871.0,0.23673]
[1725659830578,0.94719969,53872.0,53871.0,0.22673]
[1725659831011,0.94719969,53872.0,53871.0,0.24073]
[1725659831185,0.94119969,53872.0,53871.0,0.23973]
[1725659831386,0.94319969,53872.0,53871.0,0.23973]
[1725659831540,1.31444969,53872.0,53871.0,0.23973]
[1725659831739,1.31444969,53872.0,53871.0,0.22573]
[1725659831951,1.31244969,53872.0,53871.0,0.22573]
[1725659832152,1.31344969,53872.0,53871.0,0.23173]
[1725659832982,0.94219969,53872.0,53871.0,0.23173]
[1725659833341,0.94219969,53872.0,53871.0,0.24573]
[1725659834156,0.94219969,53872.0,53871.0,0.23173]
[1725659834384,0.94219969,53872.0,53871.0,0.24573]
[1725659835024,0.94301469,53872.0,53871.0,0.24573]
[1725659837815,1.31426469,53872.0,53871.0,0.24573]
[1725659842968,1.31426469,53872.0,53871.0,0.26873]
[1725659842969,0.94301469,53872.0,53871.0,0.26873]
[1725659845710,0.57176469,53872.0,53871.0,0.26873]
[1725659845956,0.94301469,53872.0,53871.0,0.26873]
[1725659849343,0.57176469,53872.0,53871.0,0.26873]
[1725659849951,1.31426469,53872.0,53871.0,0.24573]
[1725659863294,1.05712211,53872.0,53871.0,0.24573]
[1725659864075,1.24274711,53872.0,53871.0,0.24573]
[1725659864477,1.256083,53872.0,53871.0,0.24573]
[1725659867514,0.94327589,53872.0,53871.0,0.24573]
[1725659873414,0.99896342,53872.0,53871.0,0.24573]
[1725659874252,0.94327589,53872.0,53871.0,0.24573]
[1725659875362,1.31452589,53872.0,53871.0,0.24573]
[1725659877441,0.94327589,53872.0,53871.0,0.24573]
[1725659877615,1.08249472,53872.0,53871.0,0.24573]
[1725659878452,1.0828968,53872.0,53871.0,0.24573]
[1725659879562,1.02703676,53872.0,53871.0,0.24573]
[1725659879765,1.01370087,53872.0,53871.0,0.26873]
[1725659879948,1.0137046,53872.0,53871.0,0.26873]
[1725659880359,0.55869,53872.0,53871.0,0.26873]
[1725659880847,0.27120833,53872.0,53871.0,0.2957658]
[1725659881008,0.55869,53872.0,53871.0,0.2957658]
[1725659881226,0.61453356,53872.0,53871.0,0.2957658]
[1725659881432,0.61453399,53872.0,53871.0,0.26873]
[1725659882171,0.61452344,53872.0,53871.0,0.26873]
[1725659884692,0.35397558,53872.0,53871.0,0.26873]
[1725659884921,0.29814214,53872.0,53871.0,0.26873]
[1725659885132,0.48376714,53872.0,53871.0,0.26873]
[1725659885768,0.53960058,53872.0,53871.0,0.26873]
[1725659886410,0.48376714,53872.0,53871.0,0.26873]
[1725659886652,0.53958383,53872.0,53871.0,0.26873]
[1725659886881,0.53958368,53872.0,53871.0,0.26873]
[1725659887356,0.48376714,53872.0,53871.0,0.26873]
[1725659887558,0.53958443,53872.0,53871.0,0.26873]
[1725659888024,0.48376714,53872.0,53871.0,0.26873]
[1725659891848,0.48458214,53872.0,53871.0,0.26873]
[1725659893238,0.54039889,53872.0,53871.0,0.26873]
[1725659894812,0.48458214,53872.0,53871.0,0.26873]
[1725659895726,0.56833231,53872.0,53871.0,0.26873]
[1725659896345,0.48458214,53872.0,53871.0,0.26873]
[1725659896588,0.56833231,53872.0,53871.0,0.26873]
[1725659897036,0.56830525,53872.0,53871.0,0.26873]
[1725659901923,0.56830561,53872.0,53871.0,0.26873]
[1725659907086,0.56830569,53872.0,53871.0,0.26873]
[1725659908778,0.48458214,53872.0,53871.0,0.26873]
[1725659909200,0.18644,53872.0,53871.0,0.26873]
[1725659911975,0.27016743,53872.0,53871.0,0.26873]
[1725659913414,0.18644,53872.0,53871.0,0.26873]
[1725659913893,0.18644,53872.0,53871.0,0.2957658]
[1725659914087,0.18644,53872.0,53871.0,0.26873]
[1725659915421,0.29807657,53872.0,53871.0,0.26873]
[1725659915640,0.18644,53872.0,53871.0,0.26873]
[1725659923931,0.18644,53872.0,53871.0,0.24573]
[1725659924148,0.29808757,53872.0,53871.0,0.11723]
[1725659924553,0.18644,53872.0,53871.0,0.11723]
[1725659925870,0.32599947,53872.0,53871.0,0.11723]
[1725659926625,0.18644,53872.0,53871.0,0.11723]
[1725659927094,0.1247898,53874.0,53871.0,0.11723]
[1725659927297,0.08374787,53872.0,53871.0,0.11723]
[1725659927720,0.11166382,53874.0,53871.0,0.11723]
[1725659927938,0.08374936,53872.0,53871.0,0.11723]
[1725659928147,0.08374936,53872.0,53871.0,0.11123]
[1725659928497,0.11166382,53874.0,53871.0,0.11123]
[1725659928701,0.08375121,53872.0,53871.0,0.11123]
[1725659928901,0.11166382,53874.0,53871.0,0.11123]
[1725659929153,0.08375121,53872.0,53871.0,0.11123]
[1725659929355,0.11266382,53874.0,53871.0,0.11823]
[1725659929706,0.11266382,53874.0,53871.0,0.10423]
[1725659930111,0.11266382,53874.0,53871.0,0.11823]
[1725659930481,0.11166382,53874.0,53871.0,0.11123]
[1725659930688,0.185625,53872.0,53871.0,0.11123]
[1725659931233,0.186625,53872.0,53871.0,0.11823]
[1725659932930,0.186625,53872.0,53871.0,0.10423]
[1725659933391,0.186625,53872.0,53871.0,0.11823]
[1725659937671,0.186625,53872.0,53871.0,0.02263]
[1725659939077,0.32619266,53872.0,53871.0,0.02263]
[1725659939256,0.18744,53872.0,53871.0,0.02263]
[1725659939456,0.18744,53872.0,53871.0,0.12483]
[1725659944809,0.32697665,53872.0,53871.0,0.24683]
[1725659945433,0.32697288,53872.0,53871.0,0.24683]
[1725659945845,0.32697288,53872.0,53871.0,0.2716758]
[1725659946055,0.12218931,53872.0,53871.0,0.2716758]
[1725659946247,0.05580581,53874.0,53872.0,0.2231]
[1725659946400,0.05580581,53874.0,53871.0,0.17472257]
[1725659946401,0.185616,53875.0,53874.0,0.2231]
[1725659946601,0.05580581,53876.0,53875.0,0.2231]
[1725659946602,0.185612,53876.0,53875.0,0.2231]
[1725659946805,0.000815,53877.0,53875.0,0.26555348]
[1725659947024,0.000815,53877.0,53876.0,0.2461]
[1725659947331,0.08370872,53880.0,53879.0,1.151105]
[1725659947332,0.04117888,53880.0,53879.0,1.151105]
[1725659947537,0.08367917,53888.0,53883.0,0.371173]
[1725659947748,1.00153831,53898.0,53890.0,0.122]
[1725659947749,0.05577628,53893.0,53890.0,0.122]
[1725659948005,0.185561,53891.0,53890.0,0.122]
[1725659948213,0.08367917,53896.0,53895.0,0.371091]
[1725659948214,0.04706952,53896.0,53895.0,0.371091]
[1725659948416,1.00153831,53898.0,53897.0,0.185539]
[1725659948631,1.00153831,53898.0,53897.0,0.2479458]
[1725659948861,1.00153831,53898.0,53897.0,0.2699458]
[1725659949508,1.00153831,53898.0,53897.0,0.2461]
[1725659949669,1.00253831,53898.0,53897.0,0.2601]
[1725659950240,1.18807331,53898.0,53897.0,0.2601]
[1725659950441,1.18707331,53898.0,53897.0,0.2601]
[1725659950652,1.18807331,53898.0,53897.0,0.2601]
[1725659951083,1.18807331,53898.0,53897.0,0.2741]
[1725659951289,1.18807331,53898.0,53897.0,0.2601]
[1725659951498,1.18807331,53898.0,53897.0,0.2371]
[1725659951699,1.20094149,53898.0,53897.0,0.15]
[1725659952108,1.20094149,53898.0,53897.0,0.136]
[1725659952109,1.19994149,53898.0,53897.0,0.136]
[1725659952539,1.09224149,53898.0,53897.0,0.15]
[1725659952741,1.07937331,53898.0,53897.0,0.15]
[1725659952963,1.07937331,53898.0,53897.0,0.2461]
[1725659952964,0.89383831,53898.0,53897.0,0.2461]
[1725659953166,0.89383831,53898.0,53897.0,0.2601]
[1725659953384,0.89383831,53898.0,53897.0,0.451639]
[1725659953560,0.89383831,53898.0,53897.0,0.437639]
[1725659953762,0.89383831,53898.0,53897.0,0.92035628]
[1725659953979,0.89383831,53898.0,53897.0,0.91735628]
[1725659954187,0.89383831,53898.0,53897.0,0.54627828]
[1725659954317,0.89383831,53898.0,53897.0,0.93135628]
[1725659954536,0.89383831,53898.0,53897.0,0.91735628]
[1725659955645,0.87288897,53898.0,53897.0,1.28843428]
[1725659955863,0.69482188,53898.0,53897.0,1.27743428]
[1725659956062,0.69482188,53898.0,53897.0,1.29143428]
[1725659956293,0.69482188,53898.0,53897.0,1.27743428]
[1725659956471,0.69482188,53898.0,53897.0,1.29143428]
[1725659956670,0.69582188,53898.0,53897.0,1.29143428]
[1725659957029,0.56943234,53898.0,53897.0,1.239135]
[1725659957214,0.56943234,53898.0,53897.0,1.225135]
[1725659957215,0.56843234,53898.0,53897.0,1.225135]
[1725659957424,0.56843234,53898.0,53897.0,1.211135]
[1725659957632,0.56943234,53898.0,53897.0,1.239135]
[1725659958255,0.56943234,53898.0,53897.0,1.620213]
[1725659958478,0.41896587,53898.0,53897.0,1.622213]
[1725659958905,0.41796587,53898.0,53897.0,1.594213]
[1725659959354,0.31726587,53898.0,53897.0,1.622213]
[1725659959572,0.31726587,53898.0,53897.0,1.608213]
[1725659959775,0.31626587,53898.0,53897.0,1.608213]
[1725659959928,0.31626587,53898.0,53897.0,1.620213]
[1725659960129,0.31726587,53898.0,53897.0,1.622213]
[1725659960707,0.2139837,53898.0,53897.0,1.642213]
[1725659960924,0.000995,53900.0,53899.0,1.565964]
[1725659961175,0.000995,53900.0,53899.0,1.586964]
[1725659962844,0.001995,53900.0,53899.0,1.614964]
[1725659963296,0.001995,53900.0,53899.0,1.616964]
[1725659963493,0.000995,53900.0,53899.0,1.622964]
[1725659963698,0.000995,53900.0,53899.0,1.606964]
[1725659964081,0.000995,53900.0,53899.0,1.634964]
[1725659964082,0.001995,53900.0,53899.0,1.634964]
[1725659964532,0.000995,53900.0,53899.0,1.620964]
[1725659965162,0.000995,53900.0,53899.0,1.2499]
[1725659965412,0.000995,53900.0,53899.0,1.2359]
[1725659965895,0.001995,53900.0,53899.0,1.2499]
[1725659966133,0.001995,53900.0,53899.0,1.2639]
[1725659966376,0.000995,53900.0,53899.0,1.2379]
[1725659966602,0.001995,53900.0,53899.0,1.2659]
[1725659967942,0.001995,53900.0,53899.0,1.37014677]
[1725659968474,0.001995,53900.0,53899.0,1.74121077]
[1725659968698,0.001995,53900.0,53899.0,1.37014677]
[1725659969495,0.001995,53900.0,53899.0,1.74121077]
[1725659971295,0.03106689,53900.0,53899.0,1.74121077]
[1725659971496,0.00097084,53900.0,53899.0,1.74121077]
[1725659971758,0.00022397,53902.0,53901.0,1.214865]
[1725659971991,0.00022397,53902.0,53901.0,1.235865]
[1725659972989,0.00122397,53902.0,53901.0,1.249865]
[1725659973217,0.00122397,53902.0,53901.0,1.263865]
[1725659973687,0.00122397,53902.0,53901.0,0.862815]
[1725659973892,0.18674497,53902.0,53901.0,0.028]
[1725659974115,1.02463097,53902.0,53901.0,0.028]
[1725659974320,1.40896515,53902.0,53901.0,0.028]
[1725659974767,1.40896515,53902.0,53901.0,0.014]
[1725659974978,1.40896515,53902.0,53901.0,0.028]
[1725659975152,1.40796515,53902.0,53901.0,0.014]
[1725659975379,0.556585,53900.0,53899.0,0.001628]
[1725659975508,1.298699,53900.0,53899.0,0.001628]
[1725659976890,1.298699,53900.0,53899.0,0.015628]
[1725659977089,1.298699,53900.0,53899.0,0.038628]
[1725659977646,1.298699,53900.0,53899.0,0.049628]
[1725659977647,1.299699,53900.0,53899.0,0.049628]
[1725659978191,1.299699,53900.0,53899.0,0.035628]
[1725659978489,1.299699,53900.0,53899.0,0.049628]
[1725659978705,1.299699,53900.0,53899.0,0.035628]
[1725659978922,1.298699,53900.0,53899.0,0.024628]
[1725659979075,1.299699,53900.0,53899.0,0.049628]
[1725659980952,1.3287784,53900.0,53899.0,0.049628]
[1725659981811,1.299699,53900.0,53899.0,0.049628]
[1725659981967,1.74780503,53900.0,53899.0,0.026628]
[1725659983173,2.225513,53900.0,53899.0,0.026628]
[1725659984228,1.96891136,53900.0,53899.0,0.026628]
[1725659984988,1.99799337,53900.0,53899.0,0.026628]
[1725659987506,1.99880737,53900.0,53899.0,0.026628]
[1725659988082,1.99780737,53900.0,53899.0,0.015628]
[1725659988292,1.99780737,53900.0,53899.0,0.001628]
[1725659988495,1.44305037,53900.0,53899.0,0.001628]
[1725659988702,1.44305037,53900.0,53899.0,0.013628]
[1725659988919,1.07599337,53900.0,53899.0,0.036628]
[1725659989225,1.07599337,53900.0,53899.0,0.252428]
[1725659989226,0.03389601,53900.0,53899.0,0.252428]
[1725659989425,0.03389601,53900.0,53899.0,0.32267993]
[1725659989628,0.02989601,53900.0,53899.0,0.35991993]
[1725659989830,0.03089601,53900.0,53899.0,0.37991993]
[1725659990081,0.03089601,53900.0,53899.0,0.36791993]
[1725659991040,0.001814,53900.0,53899.0,0.36791993]
[1725659991298,0.000814,53900.0,53899.0,0.91651593]
[1725659991532,0.001814,53900.0,53899.0,0.94451593]
[1725659991783,0.001814,53900.0,53899.0,0.93051593]
[1725659992018,0.001814,53900.0,53899.0,0.57345193]
[1725659992257,0.001814,53900.0,53899.0,0.55945193]
[1725659992522,0.000814,53900.0,53899.0,0.55945193]
[1725659992774,0.05542721,53924.0,53911.0,0.185489]
[1725659993030,0.00081,53926.0,53915.0,0.28939376]
[1725659993031,0.001,53923.0,53915.0,0.28939376]
[1725659993307,0.001,53923.0,53915.0,0.47504272]
[1725659993308,0.01436032,53923.0,53915.0,0.47504272]
[1725659993807,0.001,53923.0,53915.0,0.47504272]
[1725659994301,0.04000736,53916.0,53915.0,0.47504272]
[1725659995423,0.04000736,53916.0,53915.0,0.48904272]
[1725659995651,0.04000736,53916.0,53915.0,0.55649559]
[1725659996850,0.04000736,53916.0,53915.0,0.48904272]
[1725659997480,0.04000736,53916.0,53915.0,0.47504272]
[1725659997900,0.04000736,53916.0,53915.0,0.48904272]
[1725659998111,0.04000736,53916.0,53915.0,0.47504272]
[1725659998324,0.04000736,53916.0,53915.0,0.48904272]
[1725659998532,0.04000736,53916.0,53915.0,0.50304272]
[1725659998759,0.04000736,53916.0,53915.0,0.48904272]
[1725659999375,0.04000736,53916.0,53915.0,0.50304272]
[1725659999781,0.04000736,53916.0,53915.0,0.47504272]
[1725659999965,0.04082136,53916.0,53915.0,0.47504272]
[1725660000132,0.04082136,53916.0,53915.0,0.48904272]
[1725660000339,0.04082136,53916.0,53915.0,0.59219329]
[1725660000915,0.0117509,53916.0,53915.0,0.037]
[1725660001117,0.0127509,53916.0,53915.0,0.028]
[1725660001439,0.0127509,53916.0,53911.0,0.1262]
[1725660001780,0.0127509,53916.0,53915.0,0.014]
[1725660002328,0.0127509,53916.0,53915.0,0.051]
[1725660002556,0.0127509,53916.0,53915.0,0.023]
[1725660002760,0.0127509,53916.0,53912.0,0.023]
[1725660002761,0.001,53915.0,53912.0,0.023]
[1725660002961,0.001,53915.0,53912.0,0.051474]
[1725660003405,0.001,53915.0,53912.0,0.023]
[1725660003537,0.001,53914.0,53912.0,0.023]
[1725660004000,0.0117509,53916.0,53912.0,0.023]
[1725660004001,0.001,53913.0,53912.0,0.023]
[1725660004228,0.001,53909.0,53903.0,0.1262]
[1725660004431,0.1036,53913.0,53903.0,0.1262]
[1725660004432,0.001,53908.0,53903.0,0.1262]
[1725660004635,0.1036,53913.0,53903.0,0.1262]
[1725660004636,0.001,53907.0,53903.0,0.1262]
[1725660005115,0.185525,53901.0,53900.0,0.0983]
[1725660005258,0.556575,53901.0,53900.0,0.0983]
[1725660005457,0.185525,53901.0,53900.0,0.1063]
[1725660005656,0.556575,53901.0,53900.0,0.1063]
[1725660005887,0.927625,53901.0,53900.0,0.1063]
[1725660006089,0.927625,53901.0,53900.0,0.008]
[1725660006781,0.927625,53901.0,53900.0,0.022]
[1725660006985,0.928625,53901.0,53900.0,0.022]
[1725660007960,0.928625,53901.0,53900.0,0.036]
[1725660008213,0.001,53901.0,53900.0,0.2385]
[1725660008389,0.185509,53906.0,53901.0,0.222764]
[1725660008587,0.185509,53906.0,53903.0,0.03724]
[1725660008813,0.001,53907.0,53903.0,0.03724]
[1725660009021,0.18551,53906.0,53905.0,0.15754]
[1725660009222,0.556526,53906.0,53905.0,0.15754]
[1725660009416,0.556526,53906.0,53905.0,0.18054]
[1725660009619,0.02907603,53907.0,53905.0,0.198594]
[1725660009875,0.02907603,53907.0,53906.0,0.023]
[1725660010177,0.21458103,53907.0,53906.0,0.023]
[1725660010879,0.185505,53907.0,53906.0,0.023]
[1725660011018,0.370976,53912.0,53908.0,0.03724]
[1725660011219,0.185491,53911.0,53909.0,0.06024]
[1725660011472,0.185491,53911.0,53910.0,0.023]
[1725660011697,0.185491,53911.0,53910.0,0.2395]
[1725660013303,0.185491,53911.0,53910.0,0.2535]
[1725660013496,0.371969,53913.0,53910.0,0.2535]
[1725660013497,0.370961,53914.0,53910.0,0.2535]
[1725660013706,0.185489,53912.0,53911.0,0.0476241]
[1725660013913,0.185489,53912.0,53911.0,0.023]
[1725660014172,0.3826979,53916.0,53911.0,0.023]
[1725660014307,0.3826979,53916.0,53912.0,0.023]
[1725660014308,0.185481,53914.0,53912.0,0.023]
[1725660014708,0.185481,53914.0,53911.0,0.023]
[1725660015131,0.185481,53914.0,53911.0,0.037]
[1725660015560,0.185484,53913.0,53912.0,0.014]
[1725660015956,0.185484,53913.0,53912.0,0.037]
[1725660016194,0.185484,53913.0,53912.0,0.023]
[1725660017153,0.185481,53914.0,53912.0,0.023]
[1725660017379,0.02907244,53913.0,53912.0,0.037]
[1725660018060,0.185481,53914.0,53912.0,0.051]
[1725660018297,0.185481,53914.0,53913.0,0.023]
[1725660019210,0.185481,53914.0,53912.0,0.028]
[1725660019441,0.185481,53914.0,53913.0,0.023]
[1725660019856,0.185481,53914.0,53913.0,0.021302]
[1725660020486,0.3826979,53916.0,53913.0,0.021302]
[1725660020487,0.1972259,53916.0,53913.0,0.08968498]
[1725660020716,0.1972259,53916.0,53913.0,0.28916798]
[1725660020717,0.0117509,53916.0,53913.0,0.28916798]
[1725660021109,0.0117509,53916.0,53913.0,0.30316798]
[1725660021571,0.0117509,53916.0,53914.0,0.18548]
[1725660021767,0.0117509,53916.0,53913.0,0.08968498]
[1725660021768,0.0117509,53916.0,53913.0,0.47264998]
[1725660021996,0.0117509,53916.0,53915.0,0.222717]
[1725660022206,0.0117509,53916.0,53915.0,0.245717]
[1725660023317,0.0117509,53916.0,53915.0,0.738871]
[1725660023647,0.0112509,53916.0,53915.0,0.701631]
[1725660024294,0.0112509,53916.0,53915.0,0.738871]
[1725660024507,0.0112509,53916.0,53915.0,0.80725398]